bitfinex/quotes_SOLUSD_20250228
["timestamp","ask_amount","ask_price","bid_price","bid_amount"]
[1740721199326,9.7,127.44,127.36,38.79181043]
[1740721199525,132.36,127.45,127.36,38.79181043]
[1740721199834,18.79181043,127.44,127.35,6.2304]
[1740721200256,26.63871043,127.44,127.35,6.2304]
[1740721200425,132.36,127.45,127.35,6.2304]
[1740721200620,132.36,127.45,127.36,18.79181043]
[1740721200927,101.59181043,127.44,127.35,6.2304]
[1740721201645,82.8,127.44,127.36,18.79181043]
[1740721201943,132.36,127.45,127.42,20.0]
[1740721202137,0.03,127.47,127.42,20.0]
[1740721202338,26.52484886,127.47,127.39,81.6]
[1740721202532,82.8,127.46,127.37,0.14216157]
[1740721202729,0.14216157,127.45,127.39,20.0]
[1740721202932,82.8,127.46,127.39,20.0]
[1740721203443,0.03,127.47,127.43,20.0]
[1740721203743,0.03,127.47,127.43,101.6]
[1740721203951,0.03,127.47,127.46,20.0]
[1740721204142,0.03,127.47,127.46,101.74216157]
[1740721204324,0.03,127.47,127.46,258.53869173]
[1740721204524,82.8,127.56,127.5,20.0]
[1740721204742,41.36051436,127.57,127.5,20.0]
[1740721204947,33.52171436,127.57,127.5,20.0]
[1740721205156,23.82171436,127.57,127.5,20.0]
[1740721205357,23.82171436,127.57,127.54,20.0]
[1740721206157,0.14216157,127.56,127.45,46.09903468]
[1740721206363,0.14216157,127.54,127.45,6.1391]
[1740721206645,18.64964886,127.52,127.41,227.8]
[1740721206828,82.8,127.51,127.41,91.3]
[1740721207024,82.8,127.53,127.46,20.0]
[1740721207263,82.8,127.53,127.48,20.0]
[1740721207635,0.14216157,127.51,127.42,81.6]
[1740721207960,82.8,127.5,127.41,136.5]
[1740721208128,109.43611043,127.49,127.37,81.6]
[1740721208330,18.64964886,127.47,127.37,218.1]
[1740721208536,92.5,127.48,127.38,18.79181043]
[1740721208748,92.5,127.48,127.37,218.1]
[1740721208749,18.64964886,127.47,127.37,218.1]
[1740721208935,18.64964886,127.47,127.45,12.11737522]
[1740721209140,101.59181043,127.46,127.45,12.11737522]
[1740721209330,18.64964886,127.46,127.45,12.11737522]
[1740721209750,94.1281,127.48,127.45,12.11737522]
[1740721210149,9.7,127.48,127.45,12.11737522]
[1740721210342,0.03,127.47,127.42,20.0]
[1740721211028,0.14216157,127.46,127.37,218.1]
[1740721211231,82.8,127.45,127.33,218.163]
[1740721211449,82.8,127.45,127.37,20.0]
[1740721212242,0.14216157,127.44,127.33,218.163]
[1740721212450,0.14216157,127.42,127.33,0.063]
[1740721212648,89.17449791,127.42,127.33,0.063]
[1740721212844,9.7,127.43,127.34,0.14216157]
[1740721213050,92.5,127.43,127.34,0.14216157]
[1740721213553,92.5,127.43,127.37,20.0]
[1740721213747,9.7,127.43,127.38,0.14216157]
[1740721213951,1.6375,127.5,127.42,0.14216157]
[1740721214258,1.6375,127.5,127.41,20.0]
[1740721214259,82.8,127.49,127.41,20.0]
[1740721215142,82.8,127.48,127.43,20.0]
[1740721215458,82.8,127.48,127.44,20.0]
[1740721217060,18.64964886,127.47,127.4,81.6]
[1740721217262,82.8,127.46,127.38,81.6]
[1740721217755,18.64964886,127.45,127.38,81.6]
[1740721218261,82.8,127.46,127.41,20.0]
[1740721219155,18.64964886,127.45,127.41,20.0]
[1740721219549,82.8,127.46,127.41,20.0]
[1740721219955,9.7,127.48,127.42,0.14216157]
[1740721220158,82.8,127.51,127.45,20.0]
[1740721220641,82.8,127.53,127.46,0.14216157]
[1740721220841,82.8,127.59,127.49,20.0]
[1740721221042,9.7,127.56,127.49,20.0]
[1740721222545,18.64964886,127.56,127.49,20.0]
[1740721222741,0.14216157,127.55,127.42,9.7]
[1740721222946,18.64964886,127.53,127.42,81.6]
[1740721223153,92.64216157,127.52,127.42,81.6]
[1740721223348,18.64964886,127.5,127.42,81.6]
[1740721223537,18.64964886,127.5,127.45,20.0]
[1740721223760,82.8,127.49,127.45,20.0]
[1740721227158,18.64964886,127.47,127.39,81.6]
[1740721227365,82.8,127.46,127.39,81.6]
[1740721227738,82.8,127.46,127.42,20.0]
[1740721227943,9.7,127.48,127.42,20.0]
[1740721228258,82.8,127.5,127.45,20.0]
[1740721229948,132.3,127.53,127.46,0.14216157]
[1740721230664,18.64964886,127.52,127.45,101.6]
[1740721230861,26.49174886,127.52,127.45,101.6]
[1740721231075,18.64964886,127.5,127.4,81.6]
[1740721231246,92.64216157,127.51,127.4,81.6]
[1740721231247,18.64964886,127.48,127.4,81.6]
[1740721231663,18.64964886,127.48,127.43,20.0]
[1740721231850,18.64964886,127.46,127.43,20.0]
[1740721232257,18.64964886,127.46,127.4,20.0]
[1740721232465,82.8,127.45,127.4,20.0]
[1740721232978,82.8,127.45,127.37,88.0384]
[1740721232979,82.8,127.45,127.37,81.6]
[1740721233156,101.44964886,127.44,127.36,0.063]
[1740721233548,101.44964886,127.44,127.38,20.0]
[1740721233945,82.94216157,127.43,127.36,0.063]
[1740721234155,82.8,127.42,127.36,0.063]
[1740721234359,82.8,127.44,127.36,20.063]
[1740721234965,18.64964886,127.43,127.36,20.063]
[1740721235263,18.64964886,127.43,127.36,0.063]
[1740721235462,18.64964886,127.41,127.36,0.063]
[1740721236063,82.8,127.42,127.36,0.063]
[1740721236258,82.3,127.42,127.36,0.063]
[1740721236465,82.3,127.42,127.37,20.0]
[1740721237374,82.3,127.45,127.39,20.0]
[1740721237548,18.64964886,127.44,127.39,20.0]
[1740721237749,82.44216157,127.43,127.36,0.063]
[1740721237949,82.3,127.42,127.36,0.063]
[1740721238156,82.3,127.42,127.36,20.063]
[1740721239382,82.3,127.42,127.37,20.0]
[1740721239979,82.3,127.45,127.37,20.0]
[1740721240183,18.64964886,127.44,127.37,20.0]
[1740721240392,0.14216157,127.43,127.37,20.0]
[1740721240557,18.64964886,127.42,127.36,0.063]
[1740721241059,18.64964886,127.42,127.37,20.0]
[1740721241378,26.49784886,127.42,127.36,0.063]
[1740721241671,92.14216157,127.41,127.36,0.063]
[1740721242183,92.14216157,127.41,127.33,0.063]
[1740721242184,18.79181043,127.39,127.33,0.063]
[1740721242363,18.79181043,127.37,127.33,0.063]
[1740721242563,92.0,127.36,127.33,0.063]
[1740721242883,18.79181043,127.34,127.28,0.063]
[1740721243084,18.79181043,127.32,127.28,0.063]
[1740721243274,99.8548,127.31,127.28,0.063]
[1740721243471,82.3,127.3,127.28,0.063]
[1740721244255,18.79181043,127.29,127.28,0.063]
[1740721244881,82.3,127.3,127.28,0.063]
[1740721245062,9.7,127.31,127.28,0.063]
[1740721245257,92.0,127.35,127.28,7.9196]
[1740721245457,9.7,127.35,127.28,7.9196]
[1740721245665,18.79181043,127.34,127.28,7.9196]
[1740721245878,18.79181043,127.34,127.28,0.063]
[1740721246064,82.3,127.33,127.28,0.063]
[1740721246783,18.79181043,127.32,127.28,0.063]
[1740721246990,82.3,127.31,127.28,0.063]
[1740721247275,92.0,127.3,127.28,0.063]
[1740721247464,0.14216157,127.29,127.28,0.063]
[1740721247673,18.79181043,127.29,127.28,0.063]
[1740721248187,132.4,127.3,127.28,0.063]
[1740721248877,18.79181043,127.29,127.28,0.063]
[1740721249184,101.59181043,127.29,127.28,0.063]
[1740721249363,18.79181043,127.29,127.28,0.063]
[1740721250187,132.4,127.3,127.28,0.063]
[1740721250486,9.7,127.29,127.28,0.063]
[1740721253075,132.4,127.3,127.28,0.063]
[1740721253257,132.4,127.3,127.29,7.856]
[1740721254173,82.8,127.36,127.32,20.0]
[1740721254375,82.8,127.36,127.29,7.856]
[1740721254567,151.5141,127.37,127.29,7.856]
[1740721254568,82.8,127.35,127.29,7.856]
[1740721254773,101.59181043,127.34,127.28,7.9195]
[1740721255087,82.8,127.33,127.28,7.9195]
[1740721255263,82.8,127.33,127.28,38.85481043]
[1740721255465,82.8,127.33,127.28,45.16711043]
[1740721255665,142.16,127.37,127.28,45.16711043]
[1740721256476,132.46,127.37,127.28,45.16711043]
[1740721256666,142.16,127.37,127.28,45.16711043]
[1740721257079,18.79181043,127.36,127.28,26.3753]
[1740721257278,82.8,127.35,127.28,0.063]
[1740721257472,18.79181043,127.33,127.28,0.063]
[1740721257684,92.5,127.32,127.28,0.063]
[1740721257988,101.59181043,127.31,127.28,0.063]
[1740721258365,82.8,127.3,127.28,0.063]
[1740721258571,82.8,127.29,127.28,0.063]
[1740721261384,109.44781043,127.29,127.24,0.063]
[1740721261592,18.79181043,127.27,127.24,0.063]
[1740721261785,9.7,127.26,127.24,0.063]
[1740721261988,101.59181043,127.25,127.24,0.063]
[1740721262579,82.8,127.25,127.24,0.063]
[1740721262974,9.7,127.26,127.24,0.063]
[1740721263180,132.48,127.28,127.24,0.063]
[1740721263589,0.14216157,127.26,127.24,0.063]
[1740721263891,9.84216157,127.25,127.24,0.063]
[1740721264192,28.49181043,127.25,127.24,0.063]
[1740721264594,28.49181043,127.25,127.24,0.0001]
[1740721264896,35.02361043,127.25,127.24,0.0001]
[1740721265484,42.88211043,127.25,127.24,0.0001]
[1740721266391,9.7,127.25,127.24,0.0001]
[1740721267293,132.48,127.28,127.24,0.0001]
[1740721269079,130.40700464,127.28,127.24,0.0001]
[1740721270185,82.8,127.31,127.24,0.0001]
[1740721270383,132.52,127.35,127.24,0.0001]
[1740721270384,9.7,127.32,127.24,0.0001]
[1740721270583,82.8,127.31,127.24,0.0001]
[1740721271089,9.7,127.32,127.27,20.0]
[1740721271279,82.8,127.34,127.27,20.0]
[1740721271691,82.8,127.34,127.31,20.0]
[1740721271896,132.52,127.35,127.31,20.0]
[1740721272495,132.52,127.35,127.24,0.0001]
[1740721272496,0.14216157,127.32,127.25,6.2972]
[1740721272697,82.8,127.31,127.25,6.2972]
[1740721273484,82.8,127.31,127.28,20.0]
[1740721274597,82.8,127.33,127.28,20.0]
[1740721274791,18.79181043,127.32,127.24,0.0001]
[1740721274992,82.8,127.31,127.24,0.0001]
[1740721275305,82.8,127.31,127.24,20.0001]
[1740721275497,0.14216157,127.32,127.24,27.859]
[1740721276006,26.64631043,127.32,127.24,27.859]
[1740721276706,26.64631043,127.32,127.24,20.0001]
[1740721276886,18.79181043,127.3,127.24,0.0001]
[1740721277091,18.79181043,127.28,127.24,0.0001]
[1740721277298,18.79181043,127.26,127.24,0.0001]
[1740721277502,101.59181043,127.25,127.24,0.0001]
[1740721277696,234.11181043,127.25,127.24,0.0001]
[1740721277995,151.31181043,127.25,127.24,0.0001]
[1740721278188,159.17031043,127.25,127.24,0.0001]
[1740721279315,132.52,127.25,127.24,0.0001]
[1740721280112,130.39477637,127.25,127.24,0.0001]
[1740721281416,82.8,127.28,127.24,0.0001]
[1740721282394,0.14216157,127.27,127.24,0.0001]
[1740721282609,82.8,127.28,127.24,0.0001]
[1740721283609,90.6567,127.28,127.24,0.0001]
[1740721283815,101.59181043,127.27,127.24,0.0001]
[1740721283996,9.7,127.26,127.24,0.0001]
[1740721284688,17.5579,127.26,127.24,0.0001]
[1740721284894,9.7,127.26,127.24,0.0001]
[1740721285509,82.8,127.31,127.26,20.0]
[1740721285710,82.8,127.31,127.27,20.0]
[1740721286593,82.8,127.31,127.28,7.8566]
[1740721287721,82.8,127.31,127.27,20.0]
[1740721288329,82.8,127.3,127.24,0.0001]
[1740721288504,18.79181043,127.29,127.24,0.0001]
[1740721289201,90.6556,127.3,127.24,0.0001]
[1740721289405,82.8,127.3,127.25,20.0]
[1740721289598,90.6557,127.3,127.25,20.0]
[1740721290204,90.6557,127.3,127.24,0.0001]
[1740721290410,101.59181043,127.29,127.24,0.0001]
[1740721290614,90.6566,127.28,127.24,0.0001]
[1740721290852,82.8,127.27,127.24,0.0001]
[1740721291350,142.27,127.32,127.25,20.0]
[1740721291531,82.8,127.31,127.25,20.0]
[1740721291724,82.8,127.31,127.27,20.0]
[1740721292937,82.8,127.31,127.27,27.8569]
[1740721293238,82.8,127.31,127.27,20.0]
[1740721293626,82.8,127.31,127.27,27.8571]
[1740721295336,132.57,127.32,127.27,109.4571]
[1740721295640,18.65547688,127.43,127.27,109.4571]
[1740721295641,227.21905103,127.39,127.31,45.24741043]
[1740721295840,227.21905103,127.39,127.35,20.0]
[1740721296651,215.32,127.39,127.35,20.0]
[1740721298561,215.32,127.39,127.31,6.4556]
[1740721298562,140.37,127.39,127.31,6.4556]
[1740721298732,92.48,127.38,127.31,6.4556]
[1740721298928,82.8,127.37,127.31,6.4556]
[1740721299132,82.8,127.37,127.34,20.0]
[1740721299941,9.68,127.38,127.34,20.0]
[1740721300134,132.52,127.39,127.34,20.0]
[1740721300739,132.52,127.39,127.31,6.4556]
[1740721300928,82.8,127.38,127.34,20.0]
[1740721301124,82.8,127.37,127.34,20.0]
[1740721302333,82.8,127.36,127.26,227.78]
[1740721302642,82.8,127.36,127.29,20.0]
[1740721302643,82.8,127.35,127.29,20.0]
[1740721302850,18.79181043,127.33,127.26,6.6606]
[1740721303144,18.79181043,127.33,127.24,81.6001]
[1740721303145,18.79181043,127.31,127.24,0.0001]
[1740721303446,9.68,127.3,127.24,0.0001]
[1740721305632,9.68,127.3,127.26,20.0]
[1740721306245,18.79181043,127.29,127.24,0.0001]
[1740721307442,82.8,127.28,127.24,0.0001]
[1740721308940,82.8,127.27,127.24,0.0001]
[1740721309650,82.8,127.26,127.24,0.0001]
[1740721310638,90.6579,127.26,127.24,0.0001]
[1740721310945,82.8,127.26,127.24,0.0001]
[1740721311651,82.8,127.28,127.24,20.0001]
[1740721312146,82.8,127.29,127.24,20.0001]
[1740721312747,82.8,127.29,127.25,7.8585]
[1740721314954,0.03,127.3,127.25,7.8585]
[1740721316856,18.82181043,127.3,127.25,7.8585]
[1740721317758,26.67721043,127.3,127.25,20.0]
[1740721317951,18.82181043,127.3,127.25,20.0]
[1740721319150,82.8,127.29,127.25,20.0]
[1740721319942,82.8,127.29,127.24,0.0001]
[1740721320358,82.8,127.29,127.24,7.859]
[1740721320550,82.8,127.28,127.27,20.0]
[1740721320952,0.03,127.3,127.27,20.0]
[1740721321961,0.03,127.3,127.27,27.8566]
[1740721323064,82.8,127.29,127.24,0.0001]
[1740721323243,82.8,127.28,127.25,7.8583]
[1740721323845,82.8,127.28,127.27,20.0]
[1740721324145,0.03,127.3,127.27,27.8573]
[1740721326251,0.03,127.3,127.24,0.0001]
[1740721326455,82.8,127.29,127.24,0.0001]
[1740721326656,82.8,127.29,127.25,20.0]
[1740721327563,82.8,127.29,127.27,20.0]
[1740721327757,0.03,127.3,127.27,20.0]
[1740721327947,82.8,127.35,127.28,18.79181043]
[1740721328148,11.89905103,127.38,127.32,20.0]
[1740721328353,82.8,127.37,127.32,20.0]
[1740721330071,82.83,127.42,127.36,38.79181043]
[1740721330256,0.03,127.42,127.36,258.5401534]
[1740721330571,0.03,127.45,127.36,256.89181043]
[1740721330751,0.03,127.45,127.37,0.14216157]
[1740721330949,0.03,127.45,127.41,20.0]
[1740721331146,0.03,127.45,127.41,101.6]
[1740721332051,0.03,127.45,127.42,18.79181043]
[1740721332472,0.0001,127.43,127.42,100.39181043]
[1740721332665,0.0001,127.43,127.42,102.03918253]
[1740721332866,0.03,127.45,127.44,38.79181043]
[1740721333055,0.03,127.45,127.44,120.39181043]
[1740721333367,0.03,127.49,127.44,120.39181043]
[1740721333368,0.03,127.49,127.44,122.03896662]
[1740721333567,0.03,127.49,127.48,20.14216157]
[1740721333755,0.03,127.49,127.48,120.39181043]
[1740721334161,0.03,127.49,127.48,101.6]
[1740721334362,0.03,127.49,127.48,120.39181043]
[1740721335376,0.03,127.52,127.51,26.0444]
[1740721335675,0.03,127.52,127.51,107.6444]
[1740721338264,0.03,127.52,127.51,126.43621043]
[1740721338458,132.45,127.6,127.56,0.14216157]
[1740721338664,132.45,127.6,127.59,20.0]
[1740721338865,0.03,127.6,127.59,20.0]
[1740721339760,0.03,127.6,127.45,219.6828]
[1740721340062,82.83,127.6,127.51,97.3044]
[1740721340569,82.83,127.6,127.54,20.0]
[1740721340973,82.83,127.6,127.56,20.0]
[1740721341272,0.03,127.6,127.57,20.0]
[1740721341457,0.03,127.6,127.58,18.79181043]
[1740721341657,0.03,127.6,127.58,100.39181043]
[1740721341862,0.03,127.6,127.58,81.6]
[1740721342275,0.03,127.6,127.59,18.79181043]
[1740721344478,0.03,127.6,127.59,244.75475779]
[1740721344784,0.03,127.65,127.59,243.10971043]
[1740721344963,0.03,127.65,127.64,38.64964886]
[1740721345283,0.03,127.65,127.64,238.1]
[1740721346060,0.03,127.65,127.6,20.0]
[1740721346267,0.03,127.65,127.63,20.0]
[1740721346658,0.03,127.65,127.6,100.39181043]
[1740721347155,0.03,127.65,127.63,20.0]
[1740721349597,82.8,127.64,127.62,20.0]
[1740721349886,82.8,127.64,127.59,0.14216157]
[1740721350070,0.03,127.65,127.61,20.0]
[1740721351272,82.8,127.64,127.55,234.2723]
[1740721351575,82.8,127.64,127.56,18.79181043]
[1740721351777,82.8,127.63,127.56,100.39181043]
[1740721352173,82.8,127.63,127.59,20.0]
[1740721352472,82.8,127.63,127.56,100.24964886]
[1740721353281,82.8,127.63,127.59,20.0]
[1740721354273,0.03,127.65,127.59,101.6]
[1740721355988,0.03,127.65,127.63,20.0]
[1740721356190,0.03,127.65,127.63,101.6]
[1740721356388,0.03,127.65,127.64,18.79181043]
[1740721356693,0.03,127.73,127.68,20.14216157]
[1740721356694,6.28739691,127.73,127.68,20.14216157]
[1740721356989,0.03,127.73,127.68,256.89181043]
[1740721357194,0.03,127.73,127.68,120.39181043]
[1740721357393,0.03,127.73,127.68,122.03524443]
[1740721357595,0.03,127.73,127.68,268.17524443]
[1740721357796,0.03,127.73,127.68,266.53181043]
[1740721358288,0.03,127.73,127.72,20.0]
[1740721358489,0.03,127.73,127.72,120.24964886]
[1740721358691,0.03,127.73,127.72,256.89181043]
[1740721359071,0.03,127.73,127.72,263.09561043]
[1740721359277,0.03,127.73,127.72,126.59561043]
[1740721359709,0.03,127.73,127.72,128.23857012]
[1740721360194,0.03,127.78,127.76,20.0]
[1740721360371,0.03,127.78,127.77,0.14216157]
[1740721360682,0.03,127.78,127.76,20.0]
[1740721361300,0.03,127.78,127.69,9.64]
[1740721361592,0.03,127.78,127.72,20.0]
[1740721361797,0.03,127.78,127.7,18.79181043]
[1740721361990,0.03,127.78,127.73,20.0]
[1740721362588,0.03,127.78,127.73,81.6]
[1740721362895,0.03,127.78,127.76,20.0]
[1740721363786,0.03,127.78,127.7,218.1]
[1740721363990,84.4499,127.78,127.69,9.64]
[1740721364183,18.79181043,127.77,127.67,20.0]
[1740721364379,18.79181043,127.77,127.67,101.6]
[1740721364585,84.4499,127.78,127.71,20.0]
[1740721364794,92.2759,127.78,127.71,20.0]
[1740721365004,1.6499,127.78,127.71,101.6]
[1740721365192,1.6499,127.78,127.71,20.0]
[1740721367205,82.8,127.77,127.68,81.6]
[1740721367495,82.8,127.76,127.69,18.64964886]
[1740721367700,82.8,127.76,127.72,20.0]
[1740721369880,1.6499,127.78,127.73,18.79181043]
[1740721370082,1.6499,127.78,127.68,20.0]
[1740721370305,1.6499,127.78,127.69,0.14216157]
[1740721370506,1.6499,127.78,127.72,20.0]
[1740721370895,1.6499,127.78,127.76,20.0]
[1740721371101,0.03,127.78,127.76,20.0]
[1740721372288,0.03,127.78,127.69,9.62]
[1740721372487,82.83,127.78,127.69,9.62]
[1740721372704,9.62,127.77,127.71,20.0]
[1740721372900,9.62,127.77,127.68,18.64964886]
[1740721373089,9.62,127.77,127.66,18.79181043]
[1740721373294,82.8,127.76,127.69,20.0]
[1740721374003,82.8,127.76,127.66,100.24964886]
[1740721374191,82.8,127.75,127.66,100.24964886]
[1740721374504,90.7394,127.75,127.69,20.0]
[1740721374690,82.8,127.74,127.69,20.0]
[1740721376910,1.5642,127.75,127.69,20.0]
[1740721377111,0.03,127.78,127.7,18.79181043]
[1740721377292,0.03,127.78,127.73,20.0]
[1740721377492,0.03,127.78,127.73,101.6]
[1740721377993,0.03,127.78,127.74,0.14216157]
[1740721379212,0.03,127.78,127.77,20.0]
[1740721379505,0.03,127.78,127.77,38.79181043]
[1740721380092,0.03,127.78,127.77,120.39181043]
[1740721382521,0.03,127.78,127.75,218.1]
[1740721382990,0.03,127.78,127.77,20.0]
[1740721383593,0.03,127.78,127.71,81.663]
[1740721384192,0.03,127.78,127.74,20.0]
[1740721384388,0.03,127.78,127.71,81.663]
[1740721384999,82.83,127.78,127.71,81.663]
[1740721385193,28.26964886,127.77,127.71,81.663]
[1740721385394,28.26964886,127.77,127.71,0.063]
[1740721386412,82.94216157,127.76,127.71,0.063]
[1740721387098,6.0305,127.71,127.64,81.6]
[1740721387413,82.8,127.7,127.62,0.14216157]
[1740721387605,82.8,127.7,127.61,81.663]
[1740721387808,15.6505,127.71,127.65,20.0]
[1740721387999,82.8,127.72,127.67,20.0]
[1740721390132,1.5191,127.73,127.67,20.0]
[1740721392729,1.5191,127.73,127.68,20.0]
[1740721392906,82.8,127.76,127.71,20.0]
[1740721395530,0.03,127.78,127.75,0.14216157]
[1740721395826,0.03,127.78,127.77,38.64964886]
[1740721396407,0.03,127.78,127.77,258.53452156]
[1740721396610,0.03,127.78,127.77,256.89181043]
[1740721396812,0.03,127.82,127.81,20.14216157]
[1740721397034,0.03,127.82,127.81,238.24216157]
[1740721397338,0.03,127.82,127.81,256.89181043]
[1740721398547,0.03,127.82,127.81,101.6]
[1740721399418,0.03,127.82,127.79,136.5]
[1740721400115,0.03,127.82,127.75,9.62]
[1740721400534,0.03,127.82,127.78,20.0]
[1740721400838,0.03,127.82,127.79,0.14216157]
[1740721402460,0.03,127.82,127.81,20.0]
[1740721402747,0.03,127.82,127.81,256.89181043]
[1740721403310,0.03,127.82,127.81,263.25401043]
[1740721403946,0.03,127.91,127.89,20.0]
[1740721405434,0.03,127.91,127.9,0.14216157]
[1740721406856,0.03,127.91,127.9,18.79181043]
[1740721409036,0.03,127.91,127.9,34.79581043]
[1740721410840,30.37473,127.98,127.9,34.79581043]
[1740721411335,30.37473,127.98,127.87,9.6]
[1740721411535,47.78853,127.98,127.86,8.21854686]
[1740721411732,18.64964886,127.97,127.86,224.6774]
[1740721411935,30.37473,127.98,127.89,20.0]
[1740721412239,30.37473,127.98,127.94,0.14216157]
[1740721412541,30.37473,127.98,127.97,20.0]
[1740721412930,30.37473,127.98,127.93,0.14216157]
[1740721413130,30.37473,127.98,127.95,20.0]
[1740721413634,30.37473,127.98,127.85,13.45322996]
[1740721413833,30.37473,127.98,127.87,1.6414014]
[1740721414144,18.64964886,127.97,127.85,3.85322996]
[1740721414329,6.2225,127.96,127.86,218.1]
[1740721414526,1.5741,127.95,127.87,18.79181043]
[1740721414848,1.5741,127.95,127.89,20.0]
[1740721415021,84.3741,127.95,127.85,18.64964886]
[1740721415227,101.44964886,127.94,127.84,9.6]
[1740721415425,92.4,127.93,127.82,218.1]
[1740721415644,1.5741,127.95,127.89,20.0]
[1740721416838,1.5741,127.95,127.89,20.063]
[1740721417353,1.5741,127.95,127.89,101.663]
[1740721420229,9.3897,127.95,127.89,101.663]
[1740721420842,1.5741,127.95,127.89,101.663]
[1740721421742,9.3896,127.95,127.89,101.663]
[1740721421948,1.5741,127.95,127.89,101.663]
[1740721422451,1.5741,127.95,127.89,20.063]
[1740721422834,9.3896,127.95,127.89,20.063]
[1740721423046,18.64964886,127.94,127.89,20.063]
[1740721424250,0.14216157,127.93,127.89,0.063]
[1740721424448,18.64964886,127.94,127.89,0.063]
[1740721424854,84.3741,127.95,127.89,0.063]
[1740721425246,18.64964886,127.94,127.89,0.063]
[1740721427055,26.46574886,127.94,127.89,0.063]
[1740721427264,0.14216157,127.93,127.89,0.063]
[1740721427551,18.64964886,127.91,127.89,0.063]
[1740721429745,92.38,127.92,127.89,0.063]
[1740721429953,9.58,127.92,127.89,0.063]
[1740721430549,82.8,127.94,127.89,0.063]
[1740721430762,92.38,127.94,127.89,0.063]
[1740721432657,18.64964886,127.93,127.89,0.063]
[1740721435032,101.44964886,127.93,127.89,0.063]
[1740721435956,9.58,127.94,127.89,0.063]
[1740721436955,1.5741,127.95,127.92,20.0]
[1740721437257,1.6397,127.99,127.92,20.0]
[1740721437447,1.6397,127.99,127.92,238.1]
[1740721439060,1.78186157,127.99,127.89,0.20516157]
[1740721439255,1.6397,127.99,127.91,20.0]
[1740721439557,39.98473,127.98,127.92,20.0]
[1740721440060,0.14216157,127.96,127.89,218.163]
[1740721440255,0.14216157,127.96,127.89,0.063]
[1740721440966,101.44964886,127.97,127.89,20.063]
[1740721442160,0.14216157,127.96,127.89,20.063]
[1740721443359,7.95716157,127.96,127.89,20.063]
[1740721444555,7.8156,127.95,127.89,20.063]
[1740721444863,0.14216157,127.94,127.89,20.063]
[1740721445264,9.58,127.93,127.89,20.063]
[1740721445449,92.38,127.93,127.89,20.063]
[1740721446476,9.58,127.93,127.89,101.663]
[1740721446651,82.8,127.97,127.89,101.663]
[1740721446964,122.78473,127.98,127.9,0.14216157]
[1740721447258,30.40473,127.98,127.93,20.0]
[1740721447564,30.40473,127.98,127.96,20.0]
[1740721448547,30.40473,127.98,127.93,81.6]
[1740721448945,28.22964886,127.97,127.93,81.6]
[1740721449166,111.02964886,127.97,127.89,81.663]